bitfinex/quotes_BTCUSD_20251011
["timestamp","ask_amount","ask_price","bid_price","bid_amount"]
[1760162663497,1.27888916,112700.0,112690.0,0.00057549]
[1760162664349,1.27888916,112700.0,112660.0,1e-08]
[1760162664350,0.17750954,112670.0,112660.0,1e-08]
[1760162664488,0.58957143,112670.0,112660.0,0.00015047]
[1760162664690,0.64990529,112670.0,112660.0,0.00015047]
[1760162665111,0.65530529,112670.0,112660.0,0.00015047]
[1760162666315,0.65353143,112670.0,112660.0,1e-08]
[1760162666513,0.65530529,112670.0,112660.0,1e-08]
[1760162666754,0.65530529,112670.0,112610.0,0.07083184]
[1760162666755,0.51758835,112620.0,112610.0,0.04607709]
[1760162666958,1.17101153,112620.0,112610.0,0.04621087]
[1760162667707,1.17101153,112620.0,112610.0,0.00013378]
[1760162668563,0.81657572,112610.0,112600.0,0.07953313]
[1760162668887,0.7963434,112610.0,112600.0,0.07953313]
[1760162669173,1.1363434,112610.0,112600.0,0.07953313]
[1760162669854,0.17761989,112600.0,112590.0,0.10968503]
[1760162670037,0.83104307,112600.0,112590.0,0.07953313]
[1760162670239,0.85604306,112600.0,112590.0,0.08529335]
[1760162670851,1.19604306,112600.0,112590.0,0.00576022]
[1760162671617,1.19604306,112600.0,112590.0,0.00676022]
[1760162674037,1.23574306,112600.0,112590.0,0.00676022]
[1760162674686,1.19604306,112600.0,112590.0,0.00576022]
[1760162674898,0.54261988,112600.0,112590.0,0.00576022]
[1760162675099,1.19604306,112600.0,112590.0,0.00576022]
[1760162676877,1.25460306,112600.0,112590.0,0.00576022]
[1760162677111,0.57280333,112580.0,112570.0,0.1108623]
[1760162677304,0.20269879,112550.0,112540.0,0.1388623]
[1760162677508,0.1776988,112550.0,112540.0,0.14764421]
[1760162677650,0.1776988,112550.0,112540.0,0.03678191]
[1760162678039,0.1776988,112550.0,112540.0,0.05058191]
[1760162678902,0.1776988,112550.0,112540.0,0.16144421]
[1760162679314,0.85612197,112550.0,112540.0,0.14764421]
[1760162679516,0.87891197,112550.0,112540.0,0.12556421]
[1760162679695,0.89582197,112550.0,112540.0,0.00631589]
[1760162680088,0.89582197,112550.0,112540.0,0.001]
[1760162680360,0.93159197,112550.0,112540.0,0.001]
[1760162680562,0.51771459,112540.0,112530.0,0.005]
[1760162680682,0.55962458,112540.0,112530.0,0.00419136]
[1760162680887,0.58241458,112540.0,112530.0,0.00419136]
[1760162681206,1.23583776,112540.0,112530.0,0.00419136]
[1760162681587,1.0810647,112540.0,112530.0,0.00419136]
[1760162682030,1.10451507,112540.0,112530.0,0.00419136]
[1760162682264,0.60586495,112540.0,112530.0,0.00419136]
[1760162682406,1.10451507,112540.0,112530.0,0.00419136]
[1760162683429,1.1168347,112540.0,112530.0,0.00419136]
[1760162683659,1.14028507,112540.0,112530.0,0.00765086]
[1760162684593,1.06481507,112540.0,112530.0,0.00765086]
[1760162684756,1.0413647,112540.0,112530.0,0.00765086]
[1760162684957,1.0640447,112540.0,112530.0,0.00765086]
[1760162685281,1.14044507,112540.0,112530.0,0.00765086]
[1760162685483,1.13944507,112540.0,112530.0,0.00765086]
[1760162685884,1.14044507,112540.0,112530.0,0.00765086]
[1760162686286,1.13944507,112540.0,112530.0,0.00765086]
[1760162687055,1.13944507,112540.0,112530.0,0.08691777]
[1760162688093,1.14122122,112540.0,112530.0,0.00765086]
[1760162688423,0.54273037,112530.0,112520.0,0.07926691]
[1760162688557,1.08592741,112530.0,112520.0,0.07926691]
[1760162688759,1.14264741,112530.0,112520.0,0.07926691]
[1760162689067,1.15544111,112530.0,112520.0,0.07926691]
[1760162691444,1.18219926,112530.0,112520.0,0.07926691]
[1760162691821,0.17774617,112520.0,112510.0,0.07966691]
[1760162692025,1.14123219,112520.0,112510.0,0.07966691]
[1760162692200,1.15580233,112520.0,112510.0,0.07966691]
[1760162692403,1.15580233,112520.0,112510.0,0.0004]
[1760162693457,0.54276196,112510.0,112500.0,0.1160623]
[1760162693670,1.13227016,112510.0,112500.0,0.1160623]
[1760162693871,1.15582016,112510.0,112500.0,0.1160623]
[1760162694090,1.15582016,112510.0,112500.0,0.0052]
[1760162694293,1.15582016,112510.0,112500.0,1e-08]
[1760162694671,1.16046992,112510.0,112500.0,1e-08]
[1760162695394,1.18546992,112510.0,112500.0,1e-08]
[1760162695576,1.16074401,112510.0,112500.0,1e-08]
[1760162695737,1.14865955,112510.0,112500.0,1e-08]
[1760162695937,1.12495031,112510.0,112500.0,1e-08]
[1760162696178,1.13774401,112510.0,112500.0,1e-08]
[1760162696342,1.16274401,112510.0,112500.0,1e-08]
[1760162696941,0.17779358,112490.0,112480.0,0.0003581]
[1760162697194,1.55776381,112490.0,112480.0,0.00050879]
[1760162697469,1.61698228,112490.0,112480.0,0.00050879]
[1760162698014,1.63257406,112490.0,112480.0,0.00050879]
[1760162698212,0.54280937,112480.0,112470.0,0.0004]
[1760162698438,1.07650078,112480.0,112470.0,0.0004]
[1760162698638,1.13394078,112480.0,112470.0,0.0004]
[1760162699372,1.1607107,112480.0,112470.0,0.0004]
[1760162699804,1.1617107,112480.0,112470.0,0.00386228]
[1760162700974,0.02599999,112480.0,112470.0,0.00386228]
[1760162701185,0.20480937,112480.0,112470.0,0.00386228]
[1760162701540,0.70345949,112480.0,112470.0,0.00386228]
[1760162701814,0.71997469,112480.0,112470.0,0.00386228]
[1760162702031,0.70145949,112480.0,112470.0,0.00386228]
[1760162702234,0.20280937,112480.0,112470.0,0.00386228]
[1760162702432,0.02499999,112490.0,112470.0,0.18168747]
[1760162702638,0.21944796,112490.0,112470.0,0.17822519]
[1760162702775,0.51780938,112480.0,112470.0,0.17822519]
[1760162702976,0.51780938,112480.0,112470.0,0.17922519]
[1760162703183,0.34,112480.0,112470.0,0.17922519]
[1760162703379,0.51780938,112480.0,112470.0,0.17922519]
[1760162703601,0.02514962,112490.0,112470.0,0.20937709]
[1760162703809,0.00014963,112490.0,112480.0,0.20796128]
[1760162704008,0.34014963,112490.0,112480.0,0.20796128]
[1760162704210,0.00014963,112490.0,112480.0,0.20796128]
[1760162704614,0.34014963,112490.0,112480.0,0.20796128]
[1760162704921,0.00014963,112490.0,112480.0,0.20796128]
[1760162705272,0.00014963,112490.0,112480.0,0.30796127]
[1760162705685,0.00014963,112490.0,112480.0,0.30996127]
[1760162706090,0.00014963,112490.0,112480.0,0.70896127]
[1760162706278,0.02595079,112540.0,112500.0,0.00888888]
[1760162706478,0.00110143,112540.0,112530.0,0.17773038]
[1760162707685,0.34110143,112540.0,112530.0,0.17773038]
[1760162708201,0.34110143,112540.0,112530.0,0.17873038]
[1760162708791,0.00110143,112540.0,112530.0,0.17873038]
[1760162708990,0.00110143,112540.0,112530.0,0.17973038]
[1760162709583,0.00110143,112540.0,112530.0,0.20988228]
[1760162709785,0.00110143,112540.0,112530.0,0.30988227]
[1760162710808,0.00110143,112540.0,112530.0,0.30888227]
[1760162711007,0.00110143,112540.0,112530.0,0.30788227]
[1760162711246,0.07043184,112570.0,112560.0,0.20782811]
[1760162711619,0.24809906,112570.0,112560.0,0.0301519]
[1760162711933,0.24809906,112570.0,112560.0,0.20783491]
[1760162712103,0.3829027,112580.0,112560.0,0.20783491]
[1760162712488,0.39131371,112580.0,112560.0,0.20783491]
[1760162712710,0.38769518,112580.0,112560.0,0.20783491]
[1760162712918,0.38769518,112580.0,112560.0,0.0301519]
[1760162712919,0.17766722,112570.0,112560.0,0.0301519]
[1760162713130,0.38769518,112580.0,112560.0,0.0301519]
[1760162713512,0.38769518,112580.0,112560.0,0.20783238]
[1760162713712,0.17766722,112570.0,112560.0,0.0301519]
[1760162714742,0.17771459,112540.0,112520.0,0.17773897]
[1760162715205,0.17773038,112530.0,112510.0,0.28665005]
[1760162715600,0.17773038,112530.0,112500.0,0.18663622]
[1760162715848,0.17774625,112520.0,112500.0,0.18678685]
[1760162716205,0.17774625,112520.0,112500.0,0.00015063]
[1760162716380,0.17776197,112510.0,112500.0,0.00015063]
[1760162716580,0.17776197,112510.0,112500.0,0.2080803]
[1760162716880,0.17774625,112520.0,112500.0,0.1779284]
[1760162717088,0.21161688,112530.0,112510.0,0.17776197]
[1760162717286,0.34,112530.0,112520.0,0.001]
[1760162717489,0.21158004,112560.0,112540.0,0.17771459]
[1760162717690,0.34,112550.0,112540.0,0.20786649]
[1760162717892,0.5176988,112550.0,112540.0,0.0301519]
[1760162718295,0.5176988,112550.0,112510.0,0.28665005]
[1760162718296,0.17772809,112540.0,112510.0,0.28665005]
[1760162718454,0.17772809,112540.0,112520.0,0.20789613]
[1760162718654,0.17772809,112540.0,112520.0,0.20804676]
[1760162719066,0.17772809,112540.0,112530.0,0.03110274]
[1760162720124,0.55158373,112550.0,112530.0,0.20883312]
[1760162720760,0.55158373,112550.0,112540.0,0.20786649]
[1760162720761,0.36499999,112550.0,112540.0,0.20786649]
[1760162720924,0.34,112550.0,112540.0,0.20786649]
[1760162721127,0.5176988,112550.0,112540.0,0.0301519]
[1760162721594,0.5176988,112550.0,112540.0,0.20786649]
[1760162721783,0.34,112550.0,112540.0,0.20786649]
[1760162721988,0.18238628,112580.0,112560.0,0.20783491]
[1760162722195,0.18238628,112580.0,112560.0,0.0301519]
[1760162722196,0.17766722,112570.0,112560.0,0.0301519]
[1760162722396,0.18238628,112580.0,112560.0,0.20783491]
[1760162722593,0.00464191,112580.0,112570.0,0.20781912]
[1760162722857,0.18229335,112580.0,112570.0,0.0301519]
[1760162723058,0.17768164,112570.0,112540.0,0.2866003]
[1760162723352,0.17768164,112570.0,112550.0,0.20784862]
[1760162725120,0.02979247,112580.0,112570.0,0.20781912]
[1760162725340,0.00709824,112580.0,112570.0,0.20781912]
[1760162725774,0.00662742,112580.0,112570.0,0.20781912]
[1760162725986,0.00245633,112580.0,112570.0,0.20781912]
[1760162728446,0.00245633,112580.0,112570.0,0.20881912]
[1760162728641,0.00245633,112580.0,112570.0,0.20981912]
[1760162729607,0.00245633,112580.0,112570.0,0.70981911]
[1760162730316,0.00245633,112580.0,112570.0,0.60981912]
[1760162730527,0.00245633,112580.0,112570.0,0.70981911]
[1760162732218,0.00245633,112580.0,112570.0,0.60981912]
[1760162732463,0.00245633,112580.0,112570.0,0.70981911]
[1760162732672,0.00245633,112580.0,112570.0,1.04981911]
[1760162732892,0.00245633,112580.0,112570.0,1.12926327]
[1760162733266,0.00245633,112580.0,112570.0,1.12826327]
[1760162734075,0.00245633,112580.0,112570.0,1.12926327]
[1760162734244,0.00245633,112580.0,112570.0,1.12826327]
[1760162734449,0.00245633,112580.0,112570.0,1.12926327]
[1760162736122,0.00245633,112580.0,112570.0,1.04981911]
[1760162737295,0.00245633,112580.0,112570.0,1.16091741]
[1760162738400,0.00245633,112580.0,112570.0,1.04981911]
[1760162739007,0.00245633,112580.0,112570.0,1.16117193]
[1760162741821,0.00036566,112580.0,112570.0,1.16117193]
[1760162744321,0.00036566,112580.0,112570.0,1.13102003]
[1760162744460,0.00036566,112580.0,112570.0,1.03102004]
[1760162744661,0.00036566,112580.0,112570.0,1.06117194]
[1760162744861,0.00036566,112580.0,112570.0,0.94981912]
[1760162745099,0.00036566,112580.0,112570.0,1.04981911]
[1760162745361,0.00036566,112580.0,112570.0,1.16117193]
[1760162749415,0.00036566,112580.0,112570.0,1.81654806]
[1760162750340,0.00036566,112580.0,112570.0,1.70519524]
[1760162751295,0.00036566,112580.0,112570.0,1.60519525]
[1760162751520,5.233e-05,112580.0,112570.0,1.70519524]
[1760162752007,7.5e-06,112580.0,112570.0,1.70519524]
[1760162752607,0.24803596,112610.0,112600.0,0.17761989]
[1760162752754,0.24853777,112610.0,112600.0,0.17761989]
[1760162753106,0.07093365,112610.0,112600.0,0.17761989]
[1760162753463,0.00050181,112610.0,112600.0,0.57761989]
[1760162756488,0.17810593,112610.0,112590.0,0.1596893]
[1760162756643,0.17760412,112610.0,112600.0,0.19151647]
[1760162756862,0.17760412,112610.0,112600.0,0.22166837]
[1760162757072,0.17760412,112610.0,112600.0,0.10995399]
[1760162757401,0.17760412,112610.0,112580.0,0.29822277]
[1760162757402,0.20261988,112600.0,112590.0,0.07980209]
[1760162758007,0.34,112610.0,112590.0,0.28758965]
[1760162758218,0.54433586,112610.0,112590.0,0.28758965]
[1760162758416,0.5426073,112610.0,112600.0,0.07980209]
[1760162758561,0.17761989,112600.0,112590.0,0.10995399]
[1760162758768,0.17761989,112600.0,112590.0,0.28958965]
[1760162759209,0.5426073,112610.0,112590.0,0.28858965]
[1760162760220,0.5426073,112610.0,112590.0,0.28758965]
[1760162761386,0.17761989,112600.0,112590.0,0.28758965]
[1760162762005,0.5426073,112610.0,112590.0,0.28758965]
[1760162762207,0.17761989,112600.0,112590.0,0.10995399]
[1760162762391,0.5426073,112610.0,112590.0,0.20778756]
[1760162762588,0.5426073,112610.0,112600.0,0.07981406]
[1760162763945,0.54433586,112610.0,112600.0,0.07981406]
[1760162765455,0.58424586,112610.0,112600.0,0.07981406]
[1760162766070,0.51933587,112610.0,112600.0,0.07981406]
[1760162766249,0.54433586,112610.0,112600.0,0.07981406]
[1760162766659,0.17763024,112600.0,112590.0,0.11171438]
[1760162767093,0.20263023,112600.0,112590.0,0.17763566]
[1760162767635,0.20263023,112600.0,112580.0,0.29824767]
[1760162768020,0.20263023,112600.0,112590.0,0.001]
[1760162768557,0.20263023,112600.0,112590.0,0.002]
[1760162768769,0.20263023,112600.0,112590.0,0.17863566]
[1760162768979,0.17760518,112610.0,112600.0,0.17761989]
[1760162769215,0.20260517,112610.0,112600.0,0.25743709]
[1760162769407,0.20260517,112610.0,112600.0,0.0798172]
[1760162769850,0.20260517,112610.0,112600.0,0.25743709]
[1760162771135,0.02499999,112610.0,112600.0,0.25743709]
[1760162771352,0.005,112630.0,112620.0,0.17758835]
[1760162771571,0.005,112630.0,112610.0,0.28755735]
[1760162771572,0.54258834,112620.0,112610.0,0.28755735]
[1760162771812,0.54258834,112620.0,112610.0,0.10995323]
[1760162772046,0.54258834,112620.0,112610.0,0.07980133]
[1760162772445,0.54489288,112620.0,112610.0,0.07980133]
[1760162773132,0.34230454,112620.0,112610.0,0.25740545]
[1760162773541,0.00230454,112620.0,112610.0,0.28755735]
[1760162775016,0.17989289,112620.0,112610.0,0.28755735]
[1760162775451,0.17989289,112620.0,112610.0,0.10995323]
[1760162775660,0.20489288,112620.0,112610.0,0.07980133]
[1760162776768,0.20489288,112620.0,112610.0,0.11171438]
[1760162777182,0.20489288,112620.0,112610.0,0.2893185]
[1760162777609,0.20489288,112620.0,112610.0,0.11171438]
[1760162778045,0.20489288,112620.0,112610.0,0.2893185]
[1760162778677,0.02730453,112620.0,112610.0,0.2893185]
[1760162778885,0.02730453,112620.0,112610.0,0.17760412]
[1760162779093,0.02730453,112620.0,112610.0,0.20775602]
[1760162779500,0.00428963,112620.0,112610.0,0.31956375]
[1760162781099,0.00944011,112630.0,112620.0,0.20774025]
[1760162781437,0.34944011,112630.0,112620.0,0.31954798]
[1760162781640,0.35001609,112630.0,112620.0,0.31954798]
[1760162781843,0.00057598,112630.0,112620.0,0.28764202]
[1760162782453,0.00057598,112630.0,112620.0,0.20774025]
[1760162785729,0.00057598,112630.0,112620.0,0.97492411]
[1760162785898,0.00057598,112630.0,112620.0,1.09992409]
[1760162786101,8.66e-05,112630.0,112620.0,1.32811636]
[1760162786903,8.66e-05,112630.0,112620.0,1.32911636]
[1760162787106,8.66e-05,112630.0,112620.0,1.72811636]
[1760162787107,2.102e-05,112630.0,112620.0,1.72811636]
[1760162787332,0.07043184,112670.0,112660.0,0.17752529]
[1760162787530,0.07058227,112670.0,112660.0,0.17752529]
[1760162787730,0.07288527,112670.0,112660.0,0.17752529]
[1760162787897,0.07288527,112670.0,112660.0,0.57752529]
[1760162788102,0.00245343,112670.0,112660.0,0.57752529]
[1760162790019,0.00245343,112670.0,112660.0,0.4]
[1760162790232,0.51996297,112670.0,112660.0,0.06376967]
[1760162790644,0.17752529,112660.0,112650.0,0.24131072]
[1760162790851,0.53446529,112660.0,112650.0,0.06376967]
[1760162791054,0.51754105,112650.0,112640.0,0.06376967]
[1760162791278,0.17755681,112640.0,112630.0,0.06376967]
[1760162791948,0.17910374,112650.0,112630.0,0.24134225]
[1760162792150,0.17755681,112640.0,112630.0,0.06376967]
[1760162794227,0.19959681,112640.0,112630.0,0.06376967]
[1760162794824,0.17755681,112640.0,112630.0,0.06376967]
[1760162795389,0.17755681,112640.0,112620.0,0.11088121]
[1760162795390,0.17757258,112630.0,112620.0,0.11088121]
[1760162795953,0.21655258,112630.0,112620.0,0.08072931]
[1760162796164,0.17757258,112630.0,112620.0,0.08072931]
[1760162797138,0.17757258,112630.0,112620.0,0.00094986]
[1760162797343,0.51755681,112640.0,112620.0,0.20869011]
[1760162797557,0.17757258,112630.0,112620.0,0.11088121]
[1760162798307,0.17757258,112630.0,112620.0,0.03110176]
[1760162799314,0.17757258,112630.0,112620.0,0.11088121]
[1760162801076,0.0575071,112630.0,112620.0,0.11088121]
[1760162804563,0.0575071,112630.0,112620.0,0.08072931]
[1760162804779,0.97244406,112630.0,112620.0,0.08072931]
[1760162805001,0.97244406,112630.0,112620.0,0.00094986]
[1760162805882,0.93774406,112630.0,112620.0,0.00094986]
[1760162806315,0.93874406,112630.0,112620.0,0.00094986]
[1760162806740,0.4411471,112630.0,112620.0,0.00094986]
[1760162806959,0.93874406,112630.0,112620.0,0.00094986]
[1760162807578,0.97444406,112630.0,112620.0,0.08072931]
[1760162808714,1.00117251,112630.0,112620.0,0.00094986]
[1760162808920,1.00581614,112630.0,112620.0,0.00094986]
[1760162809522,0.51760412,112610.0,112600.0,0.07977945]
[1760162809708,1.03326759,112610.0,112600.0,0.07992993]
[1760162809908,1.09293759,112610.0,112600.0,0.07992993]
[1760162810482,1.09293759,112610.0,112600.0,0.00015048]
[1760162811250,1.14275317,112610.0,112600.0,0.07992993]
[1760162811657,1.01562913,112590.0,112580.0,0.11169124]
[1760162811859,1.10189091,112590.0,112580.0,0.00050181]
[1760162812061,1.10357911,112590.0,112580.0,0.00050181]
[1760162812465,1.18013576,112590.0,112580.0,0.00050181]
[1760162814209,1.18113576,112590.0,112580.0,0.00050181]
[1760162814415,0.68314229,112590.0,112580.0,0.00050181]
[1760162814680,1.18113576,112590.0,112580.0,0.00050181]
[1760162814869,1.18213576,112590.0,112580.0,0.00050181]
[1760162815437,1.18213576,112590.0,112580.0,0.00280682]
[1760162815632,1.13232018,112590.0,112580.0,0.00280682]
[1760162816244,0.25716851,112590.0,112580.0,0.00280682]
[1760162816467,0.21525851,112590.0,112580.0,0.00280682]
[1760162816648,0.55525851,112590.0,112580.0,0.00280682]
[1760162817051,1.09516198,112590.0,112580.0,0.00280682]
[1760162817471,1.13063198,112590.0,112580.0,0.00280682]
[1760162820718,0.63263851,112590.0,112580.0,0.00280682]
[1760162820924,1.13063198,112590.0,112580.0,0.00280682]
[1760162821603,1.13063198,112590.0,112580.0,0.08245533]
[1760162822008,1.15563197,112590.0,112580.0,0.08245533]
[1760162822197,1.18044756,112590.0,112580.0,0.00280682]
[1760162824448,1.19698337,112590.0,112580.0,0.00280682]
[1760162825082,0.51771459,112540.0,112520.0,0.19133975]
[1760162825254,1.01572385,112530.0,112520.0,0.00015057]
[1760162825462,1.09310385,112530.0,112520.0,0.00015057]
[1760162825862,1.14466998,112530.0,112520.0,0.00015057]
[1760162826265,1.11985439,112530.0,112520.0,0.00015057]
[1760162826626,0.91839284,112530.0,112520.0,0.00015057]
[1760162826944,1.09612322,112530.0,112520.0,0.00015057]
[1760162827151,1.09712322,112530.0,112520.0,0.00015057]
[1760162827364,1.12193881,112530.0,112520.0,0.00015057]
[1760162827568,1.14863872,112530.0,112520.0,0.00015057]
[1760162828385,1.12382313,112530.0,112520.0,0.00015057]
[1760162828562,1.09882314,112530.0,112520.0,0.00015057]
[1760162828750,1.09712322,112530.0,112520.0,0.00015057]
[1760162830449,0.59912975,112530.0,112520.0,0.00015057]
[1760162830972,1.09712322,112530.0,112520.0,0.00015057]
[1760162831380,1.09712322,112530.0,112520.0,0.00361054]
[1760162831513,1.12193881,112530.0,112520.0,0.00361054]
[1760162831928,1.1469388,112530.0,112520.0,0.00361054]
[1760162834481,0.64894533,112530.0,112520.0,0.00361054]
[1760162834676,1.1469388,112530.0,112520.0,0.00361054]
[1760162834884,1.14864007,112530.0,112520.0,0.00361054]
[1760162836215,0.6506466,112530.0,112520.0,0.00361054]
[1760162836432,1.14864007,112530.0,112520.0,0.00361054]
[1760162837426,0.80755565,112530.0,112520.0,0.00361054]
[1760162838412,0.78255566,112530.0,112520.0,0.00361054]
[1760162838760,0.80755565,112530.0,112520.0,0.00361054]
[1760162839120,0.81220409,112530.0,112520.0,0.00361054]
[1760162839324,0.7872041,112530.0,112520.0,0.00361054]
[1760162839553,1.1272041,112530.0,112520.0,0.00361054]
[1760162841911,1.15220409,112530.0,112520.0,0.00361054]
[1760162842274,1.17701968,112530.0,112520.0,0.00361054]
[1760162844638,1.17701968,112530.0,112520.0,0.02361054]
[1760162844880,1.15220409,112530.0,112520.0,0.02361054]
[1760162845217,1.16871412,112530.0,112520.0,0.02361054]
[1760162845618,0.67072065,112530.0,112520.0,0.02361054]
[1760162845828,1.16871412,112530.0,112520.0,0.02361054]
[1760162846361,1.14371413,112530.0,112520.0,0.02361054]
[1760162847113,1.14201286,112530.0,112520.0,0.02361054]
[1760162852495,1.10654286,112530.0,112520.0,0.02361054]
[1760162852692,0.71998442,112530.0,112520.0,0.02361054]
[1760162853066,0.22199095,112530.0,112520.0,0.02361054]
[1760162853596,0.56199095,112530.0,112520.0,0.02361054]
[1760162854638,1.10155442,112530.0,112520.0,0.02361054]
[1760162854822,1.04347439,112530.0,112520.0,0.02361054]
[1760162855781,1.08504439,112530.0,112520.0,0.02361054]
[1760162855985,1.12087439,112530.0,112520.0,0.02361054]
[1760162856200,1.08504439,112530.0,112520.0,0.02361054]
[1760162856411,1.13749056,112530.0,112520.0,0.02361054]
[1760162856854,1.06009056,112530.0,112520.0,0.02361054]
[1760162857345,1.08411056,112530.0,112520.0,0.02361054]
[1760162857552,1.06009056,112530.0,112520.0,0.02361054]
[1760162858011,0.56209709,112530.0,112520.0,0.02361054]
[1760162858150,1.10166056,112530.0,112520.0,0.02361054]
[1760162858357,0.36775054,112530.0,112520.0,0.02361054]
[1760162858567,0.001,112530.0,112520.0,0.20135671]
[1760162859194,0.341,112530.0,112520.0,0.20135671]
[1760162860021,0.51773038,112530.0,112520.0,0.20135671]
[1760162860800,0.17773038,112530.0,112520.0,0.20135671]
[1760162860999,0.17772069,112540.0,112520.0,0.20135671]
[1760162861205,0.17772069,112540.0,112520.0,0.19789674]
[1760162861425,0.17773038,112530.0,112520.0,0.02015057]
[1760162861854,0.17773038,112530.0,112520.0,0.20135671]
[1760162862035,0.17772069,112540.0,112520.0,0.20135671]
[1760162862267,0.17772069,112540.0,112520.0,0.19789674]
[1760162862545,0.17772069,112540.0,112530.0,0.00288305]
[1760162864126,0.34,112540.0,112530.0,0.18061343]
[1760162864326,0.51771459,112540.0,112530.0,0.18061343]
[1760162864554,0.34,112540.0,112530.0,0.18061343]
[1760162865508,0.51771459,112540.0,112530.0,0.00288305]
[1760162866096,0.51771459,112540.0,112530.0,0.18061343]
[1760162866323,0.51771459,112540.0,112530.0,0.00288305]
[1760162867809,0.51771459,112540.0,112530.0,0.18061343]
[1760162868001,0.34,112540.0,112530.0,0.18061343]
[1760162868501,0.52658295,112560.0,112550.0,0.1776988]
[1760162868706,0.34,112560.0,112550.0,0.1776988]
[1760162868946,0.51768301,112560.0,112540.0,0.17769897]
[1760162869120,0.1776988,112550.0,112540.0,0.17771341]
[1760162869335,0.51771459,112540.0,112520.0,0.19789498]
[1760162869547,0.51771459,112540.0,112530.0,0.17773038]
[1760162869873,0.34,112540.0,112530.0,0.17773038]
[1760162870930,0.51771459,112540.0,112520.0,0.27780943]
[1760162871360,0.51771459,112540.0,112530.0,0.17773038]
[1760162874026,0.51771459,112540.0,112520.0,0.27780943]
[1760162874201,0.17773038,112530.0,112520.0,0.10006502]
[1760162874757,0.34,112530.0,112520.0,0.19789674]
[1760162874956,0.34,112530.0,112520.0,0.27781119]
[1760162875200,0.34,112530.0,112520.0,0.28127116]
[1760162875947,0.51773038,112530.0,112520.0,0.10352499]
[1760162876154,0.51773038,112530.0,112520.0,0.28127116]
[1760162876833,0.51773038,112530.0,112520.0,0.10352499]
[1760162877037,0.51773038,112530.0,112520.0,0.28127116]
[1760162877239,0.17773038,112530.0,112520.0,0.02361054]
[1760162877575,0.20193038,112530.0,112520.0,0.02361054]
[1760162877773,0.21844038,112530.0,112520.0,0.02361054]
[1760162878007,0.25202038,112530.0,112520.0,0.02361054]
[1760162879181,0.59202038,112530.0,112520.0,0.02361054]
[1760162880368,1.24820936,112530.0,112520.0,0.02361054]
[1760162880567,1.25020936,112530.0,112520.0,0.02361054]
[1760162882395,1.27672306,112530.0,112520.0,0.02361054]
[1760162883041,1.30172305,112530.0,112520.0,0.02361054]
[1760162884259,1.30637143,112530.0,112520.0,0.02361054]
[1760162884658,1.40637142,112530.0,112520.0,0.02361054]
[1760162884796,1.43312962,112530.0,112520.0,0.02361054]
[1760162885602,1.33312963,112530.0,112520.0,0.02361054]
[1760162885803,1.43312962,112530.0,112520.0,0.02361054]
[1760162886880,1.33312963,112530.0,112520.0,0.02361054]
[1760162887215,1.40661592,112530.0,112520.0,1e-08]
[1760162887425,0.51776197,112510.0,112500.0,0.0004]
[1760162887723,1.1921533,112510.0,112500.0,0.00055063]
[1760162887948,1.19224312,112510.0,112500.0,0.00170447]
[1760162888148,1.22582312,112510.0,112500.0,0.00170447]
[1760162888808,1.25082311,112510.0,112500.0,1e-08]
[1760162888998,0.51779358,112490.0,112480.0,0.0054]
[1760162889180,1.19049256,112490.0,112480.0,0.0054]
[1760162889407,1.27310279,112490.0,112480.0,0.0054]
[1760162889993,1.29810278,112490.0,112480.0,0.0054]
[1760162890158,0.6429138,112490.0,112480.0,0.0054]
[1760162890371,1.27427255,112490.0,112480.0,0.0054]
[1760162890583,1.24927256,112490.0,112480.0,0.0054]
[1760162891714,1.25027256,112490.0,112480.0,0.0054]
[1760162892324,0.59408358,112490.0,112480.0,0.0054]
[1760162892502,1.25027256,112490.0,112480.0,0.0054]
[1760162893130,1.21669256,112490.0,112480.0,0.0054]
[1760162893522,0.51979358,112490.0,112480.0,0.0054]
[1760162894052,0.56134358,112490.0,112480.0,0.0054]
[1760162894238,1.25161256,112490.0,112480.0,0.0054]
[1760162894543,1.25161256,112490.0,112480.0,0.00655414]
[1760162894737,1.25061256,112490.0,112480.0,0.00655414]
[1760162895171,1.25161256,112490.0,112480.0,0.00655414]
[1760162896638,1.21753256,112490.0,112480.0,0.00655414]
[1760162897486,0.56134358,112490.0,112480.0,0.00655414]
[1760162897705,0.51979358,112490.0,112480.0,0.00655414]
[1760162898793,0.54316358,112490.0,112480.0,0.00655414]
[1760162899139,0.59542358,112490.0,112480.0,0.00655414]
[1760162899539,1.21368108,112490.0,112480.0,0.00655414]
[1760162900163,1.17960108,112490.0,112480.0,0.00655414]
[1760162900293,0.5234121,112490.0,112480.0,0.00655414]
[1760162900492,0.4818621,112490.0,112480.0,0.00655414]
[1760162901722,0.17979358,112490.0,112480.0,0.00655414]
[1760162903141,0.20316358,112490.0,112480.0,0.00655414]
[1760162903896,0.51979358,112490.0,112480.0,0.00655414]
[1760162904191,0.54316358,112490.0,112480.0,0.00655414]
[1760162904397,0.56134358,112490.0,112480.0,0.00655414]
[1760162905853,0.51979358,112490.0,112480.0,0.00655414]
[1760162906819,0.54316358,112490.0,112480.0,0.00655414]
[1760162907018,0.59542358,112490.0,112480.0,0.00655414]
[1760162907728,1.25161256,112490.0,112480.0,0.00655414]
[1760162908029,1.25331365,112490.0,112480.0,0.00655414]
[1760162917033,1.25161256,112490.0,112480.0,0.00655414]
[1760162917442,1.25105256,112490.0,112480.0,0.00655414]
[1760162918206,1.26771668,112490.0,112480.0,0.00655414]
[1760162921609,1.25105256,112490.0,112480.0,0.00655414]
[1760162921884,1.26771788,112490.0,112480.0,0.00655414]
[1760162925508,1.29448338,112490.0,112480.0,0.00655414]
[1760162926327,1.31852798,112490.0,112480.0,0.00655414]
[1760162927108,0.6382944,112490.0,112480.0,0.00655414]
[1760162927318,1.31852798,112490.0,112480.0,0.00655414]
[1760162927517,1.13747367,112490.0,112480.0,0.00655414]
[1760162928375,1.13747367,112490.0,112480.0,0.00587097]
[1760162930108,1.13744855,112490.0,112480.0,0.00587097]
[1760162930284,1.12078323,112490.0,112480.0,0.00587097]
[1760162930490,1.1374512,112490.0,112480.0,0.00587097]
[1760162930948,1.12078323,112490.0,112480.0,0.00587097]
[1760162935631,0.58754908,112490.0,112480.0,0.00587097]
[1760162935839,0.54599908,112490.0,112480.0,0.00587097]
[1760162936601,0.20599908,112490.0,112480.0,0.18368035]
[1760162936806,0.20599908,112490.0,112480.0,0.08578542]
[1760162937078,0.54599908,112490.0,112480.0,0.08578542]
[1760162937250,0.20599908,112490.0,112480.0,0.08578542]
[1760162937630,0.54599908,112490.0,112480.0,0.08578542]
[1760162937833,1.06728323,112490.0,112480.0,0.08578542]
[1760162938030,1.04371323,112490.0,112480.0,0.08578542]
[1760162939086,0.54455908,112490.0,112480.0,0.08578542]
[1760162940045,0.54455908,112490.0,112480.0,0.2635948]
[1760162940267,0.3667655,112490.0,112480.0,0.18368035]
[1760162940482,0.34,112490.0,112480.0,0.18368035]
[1760162940919,0.02675634,112500.0,112490.0,0.17779358]
[1760162941136,0.00095114,112510.0,112500.0,0.17777777]
[1760162941465,0.0277033,112510.0,112500.0,0.25780983]